lending/lending_fUSD_20260211
["ID","MTS","AMOUNT","RATE_DAILY","PERIOD"]
[405093642,1770792641207,-1725.47678933,0.0001764,2]
[405093643,1770792641220,-456.0,0.00017646,2]
[405093644,1770792641232,-224.18409991,0.00017698,7]
[405093645,1770792641243,-159.0,0.00017705,2]
[405093646,1770792641255,-168.0,0.00017707,2]
[405093647,1770792641268,-168.0,0.00017712,2]
[405093648,1770792641279,-566.26610307,0.00017723,2]
[405093649,1770792641291,-500.0,0.00017738,2]
[405093650,1770792641303,-5111.81249494,0.00017757,2]
[405093651,1770792641315,-159.0,0.0001776,2]
[405093652,1770792641326,-1043.72420052,0.00017762,2]
[405093653,1770792641339,-168.0,0.00017773,2]
[405093654,1770792641351,-11218.0,0.000178,2]
[405093655,1770792641363,-500.0,0.00017808,2]
[405093656,1770792641375,-500.0,0.00017808,2]
[405093657,1770792641387,-500.0,0.00017808,2]
[405093658,1770792641400,-500.0,0.00017808,2]
[405093659,1770792641412,-500.0,0.00017808,2]
[405093660,1770792641424,-500.0,0.00017808,2]
[405093661,1770792641440,-500.0,0.00017808,2]
[405093662,1770792641452,-290.24887038,0.00017808,2]
[405093663,1770792641464,-500.0,0.00017808,2]
[405093664,1770792641476,-500.0,0.00017808,2]
[405093665,1770792641488,-500.0,0.00017808,2]
[405093666,1770792641501,-500.0,0.00017808,2]
[405093667,1770792641513,-500.0,0.00017808,2]
[405093668,1770792641525,-543.5509156,0.00017808,2]
[405093669,1770792641537,-543.5509156,0.00017808,2]
[405093670,1770792641550,-543.5509156,0.00017808,2]
[405093671,1770792641561,-543.5509156,0.00017808,2]
[405093672,1770792641574,-543.5509156,0.00017808,2]
[405093673,1770792641586,-543.5509156,0.00017808,2]
[405093674,1770792641599,-543.5509156,0.00017808,2]
[405093675,1770792641611,-543.5509156,0.00017808,2]
[405093676,1770792641623,-543.5509156,0.00017808,2]
[405093677,1770792641635,-543.5509156,0.00017808,2]
[405093678,1770792641647,-706.61619027,0.00017808,2]
[405093679,1770792641659,-706.61619027,0.00017808,2]
[405093680,1770792641671,-168.0,0.00017862,2]
[405093681,1770792641683,-389.0,0.00017871,2]
[405093682,1770792641696,-500.0,0.00017893,2]
[405093683,1770792641709,-161.74741432,0.000179,2]
[405093684,1770792641721,-10000.0,0.000179,2]
[405093685,1770792641732,-1043.72420052,0.000179,2]
[405093686,1770792641744,-5111.81249494,0.000179,2]
[405093687,1770792641761,-3566.41983356,0.000179,2]
[405093688,1770792641785,-566.26610307,0.000179,2]
[405093689,1770792641805,-500.0,0.000179,2]
[405093690,1770792641818,-500.0,0.000179,2]
[405093691,1770792641831,-500.0,0.000179,2]
[405093692,1770792641844,-500.0,0.000179,2]
[405093693,1770792641859,-500.0,0.000179,2]
[405093694,1770792641872,-500.0,0.000179,2]
[405093695,1770792641885,-3463.42742698,0.000179,2]
[405093696,1770792641897,-380.0,0.00017908,2]
[405093697,1770792641910,-1996.65546314,0.00017916,2]
[405093698,1770792641922,-168.0,0.00017923,2]
[405093699,1770792641935,-168.0,0.00017961,2]
[405093700,1770792641948,-3487.0,0.00017965,2]
[405093701,1770792641965,-1288.0,0.00017965,2]
[405093702,1770792641978,-617.0,0.00017965,2]
[405093703,1770792641990,-1337.0,0.00017965,2]
[405093704,1770792642003,-150.0,0.00017965,2]
[405093705,1770792642015,-1287.765,0.00017965,2]
[405093706,1770792642040,-200.0,0.00017965,2]
[405093707,1770792642062,-418.213,0.00017965,2]
[405093708,1770792642078,-6590.0,0.00017965,2]
[405093709,1770792642092,-2449.0,0.00017965,2]
[405093710,1770792642105,-382.68333905,0.00017973,2]
[405093711,1770792642118,-500.0,0.00017973,2]
[405093712,1770792642132,-283.5342904,0.00017973,2]
[405093713,1770792642144,-456.10306627,0.00017973,2]
[405093714,1770792642158,-500.0,0.00017973,2]
[405093715,1770792642172,-395.13296928,0.00017973,2]
[405093716,1770792642186,-500.0,0.00017973,2]
[405093717,1770792642199,-500.0,0.00017973,2]
[405093718,1770792642217,-504.01783428,0.00017973,2]
[405093719,1770792642230,-151.0,0.00017997,2]
[405093720,1770792642242,-500.0,0.00017999,2]
[405093721,1770792642254,-500.0,0.00017999,3]
[405093722,1770792642268,-500.0,0.00017999,4]
[405093723,1770792642282,-1405592.22851019,0.00018,2]
[405093724,1770792642321,-705180.03601108,0.00018,2]
[405093725,1770792642332,-2392981.05474992,0.00018,2]
[405093726,1770792642342,-825315.2347715,0.00018,2]
[405093727,1770792642355,-31212.84940385,0.00018,2]
[405093728,1770792642368,-429.22884342,0.00018,2]
[405093729,1770792643824,-1060.97311806,0.00016415,2]
[405093730,1770792643834,-5925.50609428,0.00018,2]
[405093732,1770792646032,-3756.1214918,0.00018,2]
[405093733,1770792646042,-4628.39340101,0.00018,2]
[405093734,1770792646051,-2322.01996217,0.00018,2]
[405093735,1770792646062,-2455.72798629,0.00018,2]
[405093744,1770792882475,517.75,0.00012,2]
[405093909,1770793764166,-150.0,0.00015433,2]
[405093910,1770793765061,-150.0,0.00015433,2]
[405093911,1770793766641,-6.55805168,0.00015433,2]
[405093912,1770793766663,-143.44194832,0.00016031,2]
[405093927,1770793831837,-1581.17296328,0.00016031,2]
[405093929,1770793831915,-127.8050884,0.00016031,2]
[405093930,1770793831924,-500.0,0.00016408,2]
[405093931,1770793831934,-101.70774188,0.00016462,2]
[405093932,1770793831946,-198.29225812,0.00016462,2]
[405093933,1770793831956,-1490.22973447,0.00016463,2]
[405093934,1770793831968,-605.71259571,0.00016463,2]
[405093935,1770793831979,-579.76289887,0.00016463,2]
[405093936,1770793831991,-59.98664907,0.00016463,2]
[405093937,1770793832000,-199.40350915,0.00016463,2]
[405093938,1770793832017,-3.03585076,0.00016463,2]
[405093939,1770793832027,-327.44245142,0.00016463,2]
[405093940,1770793832037,-172.44190161,0.00016463,2]
[405093941,1770793832047,-469.74971596,0.00016463,2]
[405093942,1770793832063,-1182.65432573,0.00016463,2]
[405093943,1770793832075,-1309.57837049,0.00016463,2]
[405093944,1770793832086,-5122.38,0.00016472,2]
[405093945,1770793832096,-554.66866525,0.00016515,2]
[405093946,1770793832108,-500.0,0.00016515,2]
[405093947,1770793832119,-500.0,0.00016515,2]
[405093948,1770793832129,-500.0,0.00016515,2]
[405093949,1770793832138,-317.45023847,0.00016528,2]
[405093950,1770793832148,-188.27841096,0.0001655,2]
[405093951,1770793832158,-151.0,0.00016557,2]
[405093952,1770793832168,-300.0,0.00016558,2]
[405093954,1770793832178,-384446.36389106,0.0001656,2]
[405093957,1770793832193,-508.33878369,0.0001656,2]
[405093959,1770793832210,-608.22778077,0.0001656,2]
[405093987,1770793837993,-4282.22884414,0.0001656,2]
[405093988,1770793838172,-340.7948031,0.0001656,2]
[405094176,1770793840297,-3109814.04589724,0.0001656,2]
[405094178,1770793840307,-2500.0,0.00016563,2]
[405094180,1770793840317,-200.0,0.00016628,2]
[405094182,1770793840327,-168.47553881,0.00016642,2]
[405094184,1770793840336,-7135.37356421,0.00016642,2]
[405094186,1770793840346,-188.04530105,0.00016642,2]
[405094188,1770793840355,-1000.0,0.00016643,2]
[405094190,1770793840365,-174.03,0.00016643,2]
[405094193,1770793840375,-7135.37356418,0.00016782,2]
[405094195,1770793840384,-161.12,0.00016825,2]
[405094197,1770793840394,-7135.37356418,0.00016922,2]
[405094199,1770793840408,-4573.73,0.00016922,2]
[405094201,1770793840418,-9999.99,0.00016922,2]
[405094203,1770793840427,-150.99,0.00016922,2]
[405094205,1770793840437,-999.99,0.00016922,2]
[405094207,1770793840447,-2911.45,0.00016922,2]
[405094209,1770793840456,-9999.99,0.00016922,2]
[405094211,1770793840466,-1203.16,0.00016922,2]
[405094213,1770793840476,-9999.99,0.00016922,2]
[405094215,1770793840486,-240.02,0.00016978,2]
[405094217,1770793840496,-1421.18,0.00017002,2]
[405094219,1770793840506,-7135.37356418,0.00017061,2]
[405094221,1770793840515,-150.0,0.00017079,2]
[405094223,1770793840526,-150.0,0.00017096,2]
[405094226,1770793840537,-500.0,0.00017096,2]
[405094228,1770793840547,-150.0,0.00017101,2]
[405094230,1770793840560,-3016.09,0.00017179,2]
[405094232,1770793840570,-7135.37356418,0.00017201,2]
[405094234,1770793840580,-215.51,0.00017216,2]
[405094236,1770793840589,-168.47553881,0.00017271,2]
[405094238,1770793840599,-276.0,0.00017274,2]
[405094240,1770793840608,-7135.37356418,0.00017341,2]
[405094242,1770793840619,-171.88660489,0.0001737,2]
[405094244,1770793840628,-7135.37356418,0.00017481,2]
[405094246,1770793840638,-165.0,0.00017591,2]
[405094248,1770793840648,-7135.37356418,0.0001762,2]
[405094250,1770793840658,-1720.03252891,0.0001764,2]
[405094252,1770793840668,-310.0,0.00017726,2]
[405094254,1770793840678,-1242.0648,0.00017752,2]
[405094256,1770793840688,-7135.37356418,0.0001776,2]
[405094258,1770793840699,-2449.0,0.00017773,2]
[405094260,1770793840708,-6590.0,0.00017773,2]
[405094262,1770793840718,-5966.0,0.00017773,2]
[405094264,1770793840727,-556.442,0.00017788,2]
[405094266,1770793840738,-2388.75446213,0.0001783,2]
[405094268,1770793840747,-1421.18,0.00017852,2]
[405094270,1770793840758,-4125.012,0.00017865,2]
[405094272,1770793840767,-4882.1969,0.00017865,2]
[405094274,1770793840776,-300.0,0.0001787,2]
[405094276,1770793840786,-500.0,0.00017873,2]
[405094278,1770793840796,-161.12,0.00017877,2]
[405094280,1770793840806,-168.47553881,0.000179,2]
[405094282,1770793840815,-7135.37356418,0.000179,2]
[405094284,1770793840825,-150.208,0.00017965,2]
[405094286,1770793840835,-170.794,0.00017965,2]
[405094288,1770793840844,-150.0,0.00017965,2]
[405094290,1770793840854,-150.0,0.00017965,2]
[405094292,1770793840864,-150.0,0.00017965,2]
[405094294,1770793840874,-150.183,0.00017965,2]
[405094296,1770793840884,-150.0,0.00017965,2]
[405094298,1770793840894,-3487.0,0.00017965,2]
[405094300,1770793840903,-1337.0,0.00017965,2]
[405094302,1770793840913,-1288.0,0.00017965,2]
[405094304,1770793840923,-617.0,0.00017965,2]
[405094306,1770793840933,-1215.019,0.00017965,2]
[405094308,1770793840942,-918.0,0.00017965,2]
[405094310,1770793840952,-500.0,0.00017973,2]
[405094312,1770793840962,-500.0,0.00017973,2]
[405094314,1770793840972,-500.0,0.00017973,2]
[405094316,1770793840982,-500.0,0.00017973,2]
[405094318,1770793840992,-500.0,0.00017973,2]
[405094320,1770793841002,-500.0,0.00017973,2]
[405094322,1770793841012,-500.0,0.00017973,2]
[405094324,1770793841022,-225.48317433,0.00017982,2]
[405094326,1770793841032,-420.0,0.0001799,2]
[405094328,1770793841042,-151.0,0.00017997,2]
[405094330,1770793841052,-155.20645213,0.00017997,2]
[405094332,1770793841062,-500.0,0.00017998,2]
[405094334,1770793841071,-500.0,0.00017998,2]
[405094336,1770793841081,-378587.1150276,0.00017999,2]
[405094338,1770793841090,-173.2883028,0.00017999,2]
[405094340,1770793841099,-726.4331772,0.00017999,2]
[405094342,1770793841108,-155.0,0.00017999,2]
[405094344,1770793841118,-55901.9587486,0.00017999,2]
[405094346,1770793841127,-92809.5566274,0.00017999,2]
[405094348,1770793841138,-3548.9792082,0.00017999,2]
[405094351,1770793841148,-500.0,0.00017999,2]
[405094353,1770793841158,-500.0,0.00017999,2]
[405094355,1770793841167,-500.0,0.00017999,2]
[405094356,1770793841178,-500.0,0.00017999,2]
[405094358,1770793841189,-500.0,0.00017999,2]
[405094360,1770793841201,-500.0,0.00017999,2]
[405094362,1770793841211,-500.0,0.00017999,2]
[405094364,1770793841220,-11492.0,0.00018,2]
[405094366,1770793841231,-96393.91806176,0.00018,2]
[405094721,1770793846048,-11390.62499368,0.00018,2]
[405094722,1770793846109,-528.37569997,0.00018,2]
[405094723,1770793846125,-668.16,0.00018,2]
[405094724,1770793846171,-329.79715246,0.00018,2]
[405094754,1770793942779,500.0,0.00017,30]
[405094755,1770793943271,500.0,0.00017,30]
[405094756,1770793943752,579.95678046,0.00015,30]
[405094757,1770793943812,187.91,0.00010744,2]
[405094758,1770793944002,187.91,0.00011121,2]
[405094759,1770793944197,187.91,0.00011498,2]
[405094760,1770793944391,187.91,0.00011875,2]
[405094769,1770794397693,-187.91,0.00012252,2]
[405094770,1770794397722,-250.0,0.0001244,2]
[405094771,1770794397746,-187.91,0.00012629,2]
[405094772,1770794415686,-187.91,0.00013006,2]
[405094773,1770794415710,-187.91,0.00013383,2]
[405094774,1770794415732,-1061.0,0.00013476,2]
[405094775,1770794415754,-525.20351038,0.00013477,2]
[405094776,1770794415775,-306.72363293,0.00013477,2]
[405094777,1770794415798,-300.0,0.00013477,2]
[405094778,1770794416165,-105.43285669,0.00013477,2]
[405095004,1770795032087,-911.72705474,0.00012517,2]
[405095006,1770795032167,-870.34932612,0.00012517,2]
[405095007,1770795032179,-303.999998,0.00012517,2]
[405095008,1770795032191,-706.49,0.00012517,2]
[405095009,1770795032204,-1004.03362114,0.00012517,2]
[405095010,1770795032214,-1887.61061406,0.00012756,2]
[405095011,1770795032224,-187.91,0.0001376,2]
[405095012,1770795032234,-250.0,0.00013948,2]
[405095013,1770795032245,-2166.38616711,0.00013957,2]
[405095014,1770795032255,-187.91,0.00014137,2]
[405095015,1770795032264,-2284.66434249,0.0001421,7]
[405095016,1770795032274,-187.91,0.00014514,2]
[405095017,1770795032284,-206.64976969,0.00014514,2]
[405095018,1770795032294,-187.91,0.00014891,2]
[405095019,1770795032304,-250.0,0.00015136,2]
[405095020,1770795032314,-613.97475082,0.00015136,2]
[405095021,1770795032324,-187.91,0.00015268,2]
[405095022,1770795032334,-187.91,0.00015645,2]
[405095023,1770795032344,-500.0,0.00015699,2]
[405095024,1770795032355,-180.0,0.00015762,2]
[405095025,1770795032364,-150.0,0.00015763,2]
[405095026,1770795032374,-8893.29877568,0.00015763,2]
[405095027,1770795032386,-1106.69122432,0.00015763,2]
[405095028,1770795032396,-166.66,0.00015789,2]
[405095029,1770795032406,-150.99,0.00015789,2]
[405095030,1770795032416,-5423.63978598,0.00015789,2]
[405095031,1770795032438,-299.99,0.00015789,2]
[405095032,1770795032450,-626.05274683,0.00015789,2]
[405095033,1770795032461,-16306.23746719,0.00015789,2]
[405095034,1770795032471,-999.99,0.00015789,2]
[405095035,1770795032480,-311.22,0.00015789,2]
[405095036,1770795032490,-1203.16,0.00015789,2]
[405095037,1770795032499,-1184.01,0.00015789,2]
[405095038,1770795032509,-9999.99,0.00015789,2]
[405095039,1770795032519,-9999.99,0.00015789,2]
[405095040,1770795032529,-4573.73,0.00015789,2]
[405095041,1770795032538,-3240.0,0.00015824,2]
[405095042,1770795032549,-187.91,0.00016022,2]
[405095043,1770795032562,-500.0,0.00016106,2]
[405095044,1770795032572,-151.0,0.00016106,2]
[405095045,1770795032581,-151.0,0.00016106,2]
[405095046,1770795032591,-151.0,0.00016106,2]
[405095047,1770795032601,-151.0,0.00016106,2]
[405095048,1770795032611,-151.0,0.00016106,2]
[405095049,1770795032621,-151.0,0.00016106,2]
[405095050,1770795032631,-151.0,0.00016106,2]
[405095051,1770795032640,-151.0,0.00016106,2]
[405095052,1770795032650,-151.0,0.00016106,2]
[405095053,1770795032660,-151.0,0.00016106,2]
[405095054,1770795032669,-151.0,0.00016106,2]
[405095055,1770795032679,-151.0,0.00016106,2]
[405095056,1770795032689,-151.0,0.00016106,2]
[405095057,1770795032699,-151.0,0.00016106,2]
[405095058,1770795032708,-151.0,0.00016106,2]
[405095059,1770795032718,-151.0,0.00016106,2]
[405095060,1770795032727,-151.0,0.00016106,2]
[405095061,1770795032737,-151.0,0.00016106,2]
[405095062,1770795032747,-151.0,0.00016106,2]
[405095063,1770795032757,-151.0,0.00016106,2]
[405095064,1770795032766,-166.66,0.00016121,2]
[405095065,1770795032776,-11310.34,0.00016123,2]
[405095066,1770795032785,-235.56,0.0001618,2]
[405095067,1770795032795,-5000.00815921,0.000162,5]
[405095068,1770795032804,-150.0,0.0001624,2]
[405095069,1770795032813,-500.0,0.00016243,2]
[405095070,1770795032823,-150.0,0.00016299,2]
[405095071,1770795032832,-150.0,0.00016353,2]
[405095072,1770795032842,-2723.93727322,0.00016357,2]
[405095073,1770795032852,-171.88660489,0.0001638,2]
[405095074,1770795032861,-187.91,0.00016399,2]
[405095075,1770795032870,-166.66,0.00016453,2]
[405095076,1770795032880,-166.66,0.00016556,2]
[405095077,1770795032890,-187.91,0.00016776,2]
[405095078,1770795032899,-166.66,0.00016786,2]
[405095079,1770795032909,-2370.77836653,0.00016918,2]
[405095080,1770795032918,-9416.75893472,0.00016918,2]
[405095081,1770795032927,-500.0,0.00017,2]
[405095082,1770795032937,-253.2,0.00017,2]
[405095083,1770795032946,-286822.84613694,0.00017,2]
[405095084,1770795032956,-1308.84889378,0.00017018,2]
[405095085,1770795032966,-2370.77836653,0.00017027,2]
[405095086,1770795032976,-9416.7589347,0.00017027,2]
[405095087,1770795032985,-166.66,0.00017118,2]
[405095088,1770795032995,-2370.77836653,0.00017136,2]
[405095089,1770795033005,-9416.7589347,0.00017136,2]
[405095090,1770795033014,-187.91,0.00017153,2]
[405095091,1770795033024,-245.85501438,0.00017205,2]
[405095092,1770795033034,-350.0,0.00017214,2]
[405095093,1770795033043,-2370.77836653,0.00017245,2]
[405095094,1770795033054,-9416.7589347,0.00017245,2]
[405095095,1770795033063,-2370.77836653,0.00017354,2]
[405095097,1770795033072,-166.66,0.0001745,2]
[405095099,1770795033082,-2370.77836653,0.00017464,2]
[405095101,1770795033092,-166.66,0.00017467,2]
[405095103,1770795033103,-187.91,0.0001753,2]
[405095105,1770795033112,-3002.71282627,0.00017557,2]
[405095107,1770795033122,-2370.77836653,0.00017573,2]
[405095109,1770795033132,-368.79128323,0.000176,2]
[405095110,1770795033142,-2648.07576964,0.0001764,2]
[405095112,1770795033151,-2370.77836653,0.00017682,2]
[405095114,1770795033161,-4882.1969,0.0001773,2]
[405095116,1770795033171,-4125.012,0.0001773,2]
[405095117,1770795033181,-1242.0648,0.0001777,2]
[405095118,1770795033190,-2370.77836653,0.00017791,2]
[405095119,1770795033201,-556.442,0.00017799,2]
[405095120,1770795033211,-161.74741432,0.000178,2]
[405095121,1770795033220,-2388.75446213,0.0001783,2]
[405095122,1770795033230,-200.0,0.00017855,2]
[405095123,1770795033240,-200.0,0.00017856,2]
[405095124,1770795033249,-500.0,0.00017869,2]
[405095125,1770795033260,-500.0,0.00017869,2]
[405095126,1770795033270,-500.0,0.00017869,2]
[405095127,1770795033279,-500.0,0.00017869,2]
[405095128,1770795033289,-500.0,0.00017869,2]
[405095129,1770795033298,-500.0,0.00017869,2]
[405095130,1770795033308,-500.0,0.00017869,2]
[405095131,1770795033317,-500.0,0.00017869,2]
[405095132,1770795033327,-500.0,0.00017869,2]
[405095133,1770795033336,-500.0,0.00017869,2]
[405095134,1770795033346,-500.0,0.00017869,2]
[405095135,1770795033356,-500.0,0.00017873,2]
[405095136,1770795033367,-500.0,0.00017873,2]
[405095137,1770795033377,-2500.0,0.00017875,2]
[405095138,1770795033387,-192.55751109,0.00017897,2]
[405095139,1770795033396,-192.55751107,0.00017899,2]
[405095140,1770795033406,-531.4518495,0.000179,2]
[405095141,1770795033415,-1000.0,0.000179,2]
[405095142,1770795033424,-1742.5868,0.000179,2]
[405095143,1770795033434,-188.04530105,0.000179,2]
[405095144,1770795033444,-2420.6788265,0.000179,2]
[405095145,1770795033453,-202.43935989,0.000179,3]
[405095146,1770795033463,-2370.77836653,0.000179,2]
[405095147,1770795033472,-218.2949676,0.000179,2]
[405095148,1770795033482,-192.55751107,0.000179,2]
[405095149,1770795033492,-187.91,0.00017907,2]
[405095150,1770795033501,-1273.0,0.0001797,2]
[405095151,1770795033511,-918.0,0.0001797,2]
[405095152,1770795033520,-1214.019,0.0001797,2]
[405095153,1770795033529,-1288.0,0.0001797,2]
[405095154,1770795033539,-2449.0,0.0001797,2]
[405095155,1770795033548,-500.0,0.00017973,2]
[405095156,1770795033562,-500.0,0.00017973,2]
[405095157,1770795033571,-500.0,0.00017973,2]
[405095158,1770795033580,-500.0,0.00017973,2]
[405095159,1770795033589,-500.0,0.00017973,2]
[405095160,1770795033600,-500.0,0.00017973,2]
[405095161,1770795033610,-500.0,0.00017973,2]
[405095162,1770795033619,-252337.7052882,0.00017975,2]
[405095163,1770795033635,-1254.41808677,0.00017975,2]
[405095164,1770795038777,-22.90244081,0.00017354,2]
[405095165,1770795038789,-6056.3937689,0.00017354,2]
[405095166,1770795038801,-3337.46272499,0.00017354,2]
[405095167,1770795038810,-500.0,0.00017973,2]
[405095168,1770795038819,-14271.33548466,0.00017975,2]
[405095169,1770795038831,-335.96000004,0.00017975,2]
[405095170,1770795040207,-412.0,0.0001797,2]
[405095171,1770795040517,-9416.7589347,0.00017464,2]
[405095172,1770795040527,-3075.0,0.0001797,2]
[405095173,1770795040537,-15740.91741103,0.00017975,2]
[405095174,1770795040550,-544.8248829,0.00017975,2]
[405095175,1770795040562,-41926.4690614,0.00017975,2]
[405095176,1770795040571,-1308.84889376,0.00017981,2]
[405095177,1770795040581,-350.0,0.00017982,2]
[405095178,1770795040591,-225.48317433,0.00017982,2]
[405095180,1770795040601,-209.13309471,0.0001799,2]
[405095181,1770795040612,-500.0,0.00017996,2]
[405095182,1770795040625,-358.32105063,0.00017996,2]
[405095183,1770795040635,-500.0,0.00017996,2]
[405095184,1770795040645,-500.0,0.00017996,2]
[405095185,1770795040659,-500.0,0.00017996,2]
[405095186,1770795040669,-500.0,0.00017996,2]
[405095187,1770795040678,-500.0,0.00017996,2]
[405095188,1770795040688,-500.0,0.00017996,2]
[405095189,1770795040697,-472.77838712,0.00017996,2]
[405095190,1770795040707,-500.0,0.00017996,2]
[405095191,1770795040717,-500.0,0.00017996,2]
[405095192,1770795040727,-2363.8432443,0.00017997,2]
[405095193,1770795040737,-12741.0405466,0.00017997,2]
[405095194,1770795040746,-173.2883029,0.00017997,2]
[405095195,1770795040756,-132006.2658952,0.00017997,2]
[405095196,1770795040765,-337.09225134,0.00017999,2]
[405095197,1770795040775,-500.0,0.00017999,2]
[405095198,1770795040785,-500.0,0.00017999,2]
[405095199,1770795040796,-255.13891353,0.00017999,2]
[405095200,1770795040806,-484.49617292,0.00017999,2]
[405095202,1770795040820,-168.58061535,0.00017999,2]
[405095204,1770795040829,-378.29554952,0.00017999,2]
[405095205,1770795040839,-500.0,0.00017999,2]
[405095206,1770795040848,-500.0,0.00017999,2]
[405095207,1770795040858,-500.0,0.00017999,2]
[405095208,1770795040868,-500.0,0.00017999,2]
[405095209,1770795040877,-213.03006445,0.00017999,2]
[405095210,1770795040887,-500.0,0.00017999,2]
[405095211,1770795040897,-500.0,0.00017999,2]
[405095212,1770795040907,-500.0,0.00017999,2]
[405095213,1770795040917,-500.0,0.00017999,2]
[405095214,1770795040927,-500.0,0.00017999,2]
[405095215,1770795040936,-158.26456667,0.00017999,2]
[405095216,1770795040946,-500.0,0.00017999,2]
[405095217,1770795040955,-500.0,0.00017999,2]
[405095218,1770795040965,-500.0,0.00017999,2]
[405095219,1770795040975,-500.0,0.00017999,2]
[405095220,1770795040986,-500.0,0.00017999,2]
[405095221,1770795040996,-500.0,0.00017999,2]
[405095222,1770795041006,-500.0,0.00017999,2]
[405095223,1770795041019,-500.0,0.00017999,2]
[405095224,1770795041028,-500.0,0.00017999,2]
[405095225,1770795041039,-200.0,0.00017999,2]
[405095226,1770795041048,-500.0,0.00017999,2]
[405095227,1770795041059,-500.0,0.00017999,2]
[405095228,1770795041070,-250.0,0.00017999,2]
[405095229,1770795041079,-11492.0,0.00018,2]
[405095230,1770795041089,-563312.4086219,0.00018,2]
[405095232,1770795044957,-670.49,0.00018,2]
[405095264,1770795135793,500.0,0.00017,30]
[405095265,1770795136146,557.0,0.00015,30]
[405095283,1770795318336,570.66,0.000107,2]
[405095284,1770795339065,-175.95,0.00013656,2]
[405095321,1770796053518,483.78496624,0.00017,30]
[405095383,1770796232214,-169.08628634,0.00016597,2]
[405095384,1770796232224,-237.70105241,0.000166,2]
[405095385,1770796232234,-243.02486602,0.000166,2]
[405095386,1770796232245,-278.99793227,0.000166,2]
[405095387,1770796232255,-683.58427007,0.000166,2]
[405095388,1770796232272,-930.20161427,0.000166,2]
[405095389,1770796232287,-1142.24465529,0.000166,2]
[405095390,1770796232304,-6614.15043132,0.000166,2]
[405095391,1770796232314,-4774.39261204,0.00016621,2]
[405095392,1770796232323,-150.0,0.00016689,2]
[405095393,1770796232333,-337.09225134,0.00016689,2]
[405095394,1770796232343,-11557.44031834,0.0001669,2]
[405095395,1770796232356,-1159.94357071,0.0001669,2]
[405095396,1770796232368,-871.14161176,0.0001669,2]
[405095397,1770796232381,-3037.07724405,0.0001669,2]
[405095398,1770796232393,-612.78854042,0.0001669,2]
[405095399,1770796232405,-126007.23667382,0.0001669,2]
[405095400,1770796232414,-151.0,0.00016697,2]
[405095401,1770796232424,-255.13891353,0.00016699,2]
[405095402,1770796232434,-500.0,0.00016699,2]
[405095403,1770796232443,-642.72975972,0.00016699,2]
[405095404,1770796232452,-168.58061535,0.00016699,2]
[405095406,1770796232462,-452.43159242,0.00016699,2]
[405095408,1770796232474,-500.0,0.00016699,2]
[405095410,1770796232490,-363.03006445,0.00016699,2]
[405095412,1770796232501,-500.0,0.00016699,2]
[405095413,1770796232510,-500.0,0.00016699,2]
[405095415,1770796232519,-500.0,0.00016699,2]
[405095417,1770796232529,-500.0,0.00016699,2]
[405095419,1770796232538,-276.11014219,0.00016699,2]
[405095421,1770796232548,-504.73417313,0.00016699,2]
[405095423,1770796232557,-51847.20726141,0.000167,2]
[405095426,1770796232568,-230795.89705709,0.000167,2]
[405095428,1770796232580,-186606.14562704,0.000167,2]
[405095430,1770796232592,-169867.40735629,0.000167,2]
[405095494,1770796238323,-1172.96774003,0.000167,2]
[405095495,1770796238335,-873.39,0.000167,2]